[Event "Titled Tuesday Blitz August 22 Early 2023"]
[White "Hambleton, Aman"]
[Black "FoxOnTheRun97"]
[WhiteFideId "2606577"]
[WhiteElo "2856"]
[BlackElo "2554"]
[Result "1-0"]
[Round "2"]
[TimeControl "180+1"]
[Date "2023.08.22"]
[WhiteClock "0:00:02"]
[BlackClock "0:00:00"]
[Board "51"]

1. d4 {[%clk 0:03:00]}  Nf6 {[%clk 0:02:59]} 2. Bf4 {[%clk 0:02:58]}  d5 {[%clk 0:02:55]} 3. e3 {[%clk 0:02:59]}  Bf5 {[%clk 0:02:55]} 4. c4 {[%clk 0:02:59]}  e6 {[%clk 0:02:54]} 5. a3 {[%clk 0:02:59]}  Bd6 {[%clk 0:02:53]} 6. Bg5 {[%clk 0:02:58]}  h6 {[%clk 0:02:52]} 7. Bxf6 {[%clk 0:02:56]}  Qxf6 {[%clk 0:02:40]} 8. cxd5 {[%clk 0:02:48]}  exd5 {[%clk 0:02:40]} 9. Qb3 {[%clk 0:02:46]}  Nd7 {[%clk 0:02:14]} 10. Nc3 {[%clk 0:02:40]}  Nb6 {[%clk 0:02:04]} 11. Nf3 {[%clk 0:01:57]}  O-O-O {[%clk 0:01:45]} 12. Nb5 {[%clk 0:01:48]}  Kb8 {[%clk 0:01:42]} 13. Rc1 {[%clk 0:01:34]}  Bd7 {[%clk 0:01:19]} 14. Nxd6 {[%clk 0:01:27]}  Qxd6 {[%clk 0:01:20]} 15. Ne5 {[%clk 0:01:00]}  Be6 {[%clk 0:00:59]} 16. Be2 {[%clk 0:00:36]}  f6 {[%clk 0:00:54]} 17. Nd3 {[%clk 0:00:32]}  g5 {[%clk 0:00:52]} 18. Nc5 {[%clk 0:00:28]}  Bc8 {[%clk 0:00:52]} 19. a4 {[%clk 0:00:29]}  Ka8 {[%clk 0:00:36]} 20. a5 {[%clk 0:00:18]}  Nd7 {[%clk 0:00:36]} 21. O-O {[%clk 0:00:11]}  h5 {[%clk 0:00:28]} 22. Qc3 {[%clk 0:00:05]}  Rh7 {[%clk 0:00:15]} 23. b4 {[%clk 0:00:04]}  h4 {[%clk 0:00:13]} 24. b5 {[%clk 0:00:03]}  h3 {[%clk 0:00:14]} 25. g3 {[%clk 0:00:03]}  f5 {[%clk 0:00:09]} 26. Bd3 {[%clk 0:00:02]}  Rf7 {[%clk 0:00:07]} 27. Nxd7 {[%clk 0:00:03]}  Qxd7 {[%clk 0:00:07]} 28. a6 {[%clk 0:00:02]}  b6 {[%clk 0:00:06]} 29. Qc6+ {[%clk 0:00:02]}  Qxc6 {[%clk 0:00:06]} 30. Rxc6 {[%clk 0:00:03]}  Rd6 {[%clk 0:00:03]} 31. Rxd6 {[%clk 0:00:03]}  cxd6 {[%clk 0:00:04]} 32. f3 {[%clk 0:00:02]}  Bd7 {[%clk 0:00:04]} 33. Rc1 {[%clk 0:00:02]}  Kb8 {[%clk 0:00:04]} 34. Kf2 {[%clk 0:00:02]}  Rf8 {[%clk 0:00:05]} 35. Be2 {[%clk 0:00:02]}  Rc8 {[%clk 0:00:05]} 36. Rxc8+ {[%clk 0:00:01]}  Kxc8 {[%clk 0:00:06]} 37. g4 {[%clk 0:00:02]}  fxg4 {[%clk 0:00:06]} 38. fxg4 {[%clk 0:00:02]}  Kd8 {[%clk 0:00:06]} 39. Kg3 {[%clk 0:00:03]}  Ke7 {[%clk 0:00:07]} 40. Kxh3 {[%clk 0:00:04]}  Kf6 {[%clk 0:00:07]} 41. Kg3 {[%clk 0:00:04]}  Be6 {[%clk 0:00:07]} 42. Bd3 {[%clk 0:00:04]}  Bd7 {[%clk 0:00:07]} 43. h4 {[%clk 0:00:04]}  Be6 {[%clk 0:00:05]} 44. h5 {[%clk 0:00:02]}  Kg7 {[%clk 0:00:05]} 45. Bf5 {[%clk 0:00:01]}  Bf7 {[%clk 0:00:05]} 46. Bd7 {[%clk 0:00:01]}  Kf6 {[%clk 0:00:02]} 47. Kf3 {[%clk 0:00:01]}  Bg8 {[%clk 0:00:00]} 48. Bc6 {[%clk 0:00:02]} 1-0


[Site "https://www.chess.com"]

[Event "Titled Tuesday Blitz August 22 Early 2023"]
[White "To, Nhat Minh"]
[Black "Ibrahimli, Murad"]
[WhiteFideId "729019"]
[BlackFideId "13410229"]
[WhiteElo "2550"]
[BlackElo "2854"]
[Result "0-1"]
[Round "2"]
[TimeControl "180+1"]
[Date "2023.08.22"]
[WhiteClock "0:00:47"]
[BlackClock "0:02:26"]
[Board "52"]

1. e4 {[%clk 0:03:00]}  c5 {[%clk 0:02:58]} 2. Nf3 {[%clk 0:03:00]}  d6 {[%clk 0:02:58]} 3. d4 {[%clk 0:03:01]}  cxd4 {[%clk 0:02:59]} 4. Qxd4 {[%clk 0:03:01]}  Nf6 {[%clk 0:02:59]} 5. Nc3 {[%clk 0:03:00]}  a6 {[%clk 0:02:58]} 6. h3 {[%clk 0:02:52]}  Nc6 {[%clk 0:02:59]} 7. Qe3 {[%clk 0:02:52]}  g6 {[%clk 0:02:59]} 8. Be2 {[%clk 0:02:50]}  Bg7 {[%clk 0:03:00]} 9. O-O {[%clk 0:02:51]}  O-O {[%clk 0:03:00]} 10. Rd1 {[%clk 0:02:48]}  Qc7 {[%clk 0:03:00]} 11. a3 {[%clk 0:02:37]}  Be6 {[%clk 0:03:01]} 12. Nd5 {[%clk 0:02:33]}  Bxd5 {[%clk 0:03:01]} 13. exd5 {[%clk 0:02:34]}  Na5 {[%clk 0:03:01]} 14. Bd2 {[%clk 0:02:09]}  Nxd5 {[%clk 0:02:40]} 15. Bxa5 {[%clk 0:01:44]}  Qxa5 {[%clk 0:02:41]} 16. Qe4 {[%clk 0:01:37]}  e6 {[%clk 0:02:41]} 17. c4 {[%clk 0:01:27]}  Nf6 {[%clk 0:02:41]} 18. Qxb7 {[%clk 0:01:28]}  Rab8 {[%clk 0:02:38]} 19. b4 {[%clk 0:01:22]}  Rxb7 {[%clk 0:02:32]} 20. bxa5 {[%clk 0:01:23]}  Ne4 {[%clk 0:02:32]} 21. Rab1 {[%clk 0:01:19]}  Rfb8 {[%clk 0:02:32]} 22. Bd3 {[%clk 0:01:17]}  Nc5 {[%clk 0:02:29]} 23. Rxb7 {[%clk 0:01:10]}  Rxb7 {[%clk 0:02:30]} 24. Rb1 {[%clk 0:01:11]}  Bb2 {[%clk 0:02:30]} 25. Bc2 {[%clk 0:01:07]}  Bxa3 {[%clk 0:02:30]} 26. Rxb7 {[%clk 0:01:07]}  Nxb7 {[%clk 0:02:31]} 27. Nd4 {[%clk 0:01:03]}  Nxa5 {[%clk 0:02:29]} 28. Bd3 {[%clk 0:00:56]}  Bc5 {[%clk 0:02:30]} 29. Nc2 {[%clk 0:00:53]}  Nc6 {[%clk 0:02:29]} 30. Na1 {[%clk 0:00:53]}  a5 {[%clk 0:02:29]} 31. Bc2 {[%clk 0:00:51]}  Ne5 {[%clk 0:02:29]} 32. Ba4 {[%clk 0:00:52]}  Nxc4 {[%clk 0:02:28]} 33. Nb3 {[%clk 0:00:53]}  Nb2 {[%clk 0:02:26]} 34. Bb5 {[%clk 0:00:50]}  a4 {[%clk 0:02:27]} 35. Bxa4 {[%clk 0:00:47]}  Nxa4 {[%clk 0:02:26]} 0-1


[Site "https://www.chess.com"]

[Event "Titled Tuesday Blitz August 22 Early 2023"]
[White "Maksimovic, Bojan"]
[Black "Yelisieiev, Yevhenii"]
[WhiteFideId "14408120"]
[BlackFideId "14139642"]
[WhiteElo "2853"]
[BlackElo "2550"]
[Result "1-0"]
[Round "2"]
[TimeControl "180+1"]
[Date "2023.08.22"]
[WhiteClock "0:00:07"]
[BlackClock "0:00:05"]
[Board "53"]

1. e4 {[%clk 0:02:59]}  d6 {[%clk 0:03:00]} 2. d4 {[%clk 0:02:59]}  Nf6 {[%clk 0:03:01]} 3. Nc3 {[%clk 0:02:59]}  e5 {[%clk 0:03:01]} 4. Nf3 {[%clk 0:02:59]}  Nbd7 {[%clk 0:03:01]} 5. h3 {[%clk 0:03:00]}  Be7 {[%clk 0:03:01]} 6. g4 {[%clk 0:02:58]}  O-O {[%clk 0:03:00]} 7. g5 {[%clk 0:02:44]}  Nh5 {[%clk 0:02:59]} 8. Be3 {[%clk 0:02:43]}  g6 {[%clk 0:02:58]} 9. Qd2 {[%clk 0:02:34]}  c6 {[%clk 0:02:58]} 10. a4 {[%clk 0:02:30]}  Qa5 {[%clk 0:02:36]} 11. Bd3 {[%clk 0:02:15]}  a6 {[%clk 0:02:05]} 12. h4 {[%clk 0:01:53]}  b5 {[%clk 0:02:04]} 13. b4 {[%clk 0:01:49]}  Qxb4 {[%clk 0:01:54]} 14. axb5 {[%clk 0:01:49]}  cxb5 {[%clk 0:01:31]} 15. Nd5 {[%clk 0:01:25]}  Qxd2+ {[%clk 0:01:30]} 16. Kxd2 {[%clk 0:01:25]}  Bd8 {[%clk 0:01:31]} 17. Bxb5 {[%clk 0:01:14]}  exd4 {[%clk 0:01:30]} 18. Nxd4 {[%clk 0:01:12]}  Nc5 {[%clk 0:01:19]} 19. f3 {[%clk 0:01:09]}  Bb7 {[%clk 0:01:15]} 20. Bc6 {[%clk 0:01:09]}  Bxc6 {[%clk 0:01:09]} 21. Nxc6 {[%clk 0:01:10]}  Ne6 {[%clk 0:00:52]} 22. Rhb1 {[%clk 0:00:17]}  f6 {[%clk 0:00:47]} 23. Nxd8 {[%clk 0:00:17]}  Nxd8 {[%clk 0:00:44]} 24. Rb6 {[%clk 0:00:09]}  fxg5 {[%clk 0:00:42]} 25. hxg5 {[%clk 0:00:09]}  Rxf3 {[%clk 0:00:39]} 26. Rxd6 {[%clk 0:00:10]}  Ng3 {[%clk 0:00:35]} 27. Nf6+ {[%clk 0:00:09]}  Kh8 {[%clk 0:00:32]} 28. Raxa6 {[%clk 0:00:08]}  Rxa6 {[%clk 0:00:18]} 29. Rxa6 {[%clk 0:00:06]}  Kg7 {[%clk 0:00:14]} 30. Ra7+ {[%clk 0:00:06]}  Nf7 {[%clk 0:00:14]} 31. Bd4 {[%clk 0:00:06]}  Kf8 {[%clk 0:00:10]} 32. Nxh7+ {[%clk 0:00:06]}  Ke8 {[%clk 0:00:10]} 33. Nf6+ {[%clk 0:00:06]}  Kf8 {[%clk 0:00:10]} 34. Bc5+ {[%clk 0:00:07]}  Kg7 {[%clk 0:00:10]} 35. Bd4 {[%clk 0:00:07]}  Kf8 {[%clk 0:00:10]} 36. Ra8+ {[%clk 0:00:08]}  Ke7 {[%clk 0:00:10]} 37. Bc5+ {[%clk 0:00:07]}  Ke6 {[%clk 0:00:05]} 38. Re8# {[%clk 0:00:07]} 1-0


[Site "https://www.chess.com"]

[Event "Titled Tuesday Blitz August 22 Early 2023"]
[White "maksimys18"]
[Black "Bernadskiy, Vitaliy"]
[BlackFideId "14100371"]
[WhiteElo "2547"]
[BlackElo "2846"]
[Result "1-0"]
[Round "2"]
[TimeControl "180+1"]
[Date "2023.08.22"]
[WhiteClock "0:00:08"]
[BlackClock "0:00:00"]
[Board "56"]

1. d4 {[%clk 0:03:00]}  Nf6 {[%clk 0:02:57]} 2. Nf3 {[%clk 0:02:59]}  c5 {[%clk 0:02:54]} 3. d5 {[%clk 0:02:59]}  d6 {[%clk 0:02:54]} 4. c4 {[%clk 0:02:59]}  e5 {[%clk 0:02:54]} 5. Nc3 {[%clk 0:02:57]}  Be7 {[%clk 0:02:53]} 6. Bg5 {[%clk 0:02:48]}  O-O {[%clk 0:02:51]} 7. e3 {[%clk 0:02:46]}  Bg4 {[%clk 0:02:47]} 8. Be2 {[%clk 0:02:44]}  Nbd7 {[%clk 0:02:40]} 9. h4 {[%clk 0:02:38]}  Ne8 {[%clk 0:02:32]} 10. Bxe7 {[%clk 0:02:37]}  Qxe7 {[%clk 0:02:33]} 11. Qc2 {[%clk 0:02:33]}  Bxf3 {[%clk 0:02:24]} 12. Bxf3 {[%clk 0:02:32]}  f5 {[%clk 0:02:23]} 13. g4 {[%clk 0:02:31]}  e4 {[%clk 0:01:53]} 14. Be2 {[%clk 0:02:26]}  Nef6 {[%clk 0:01:39]} 15. gxf5 {[%clk 0:02:23]}  Qe5 {[%clk 0:01:39]} 16. O-O-O {[%clk 0:02:18]}  a6 {[%clk 0:01:38]} 17. h5 {[%clk 0:02:05]}  b5 {[%clk 0:01:36]} 18. h6 {[%clk 0:02:05]}  bxc4 {[%clk 0:01:31]} 19. hxg7 {[%clk 0:02:03]}  Rfb8 {[%clk 0:01:31]} 20. Bxc4 {[%clk 0:02:00]}  Rb4 {[%clk 0:01:27]} 21. b3 {[%clk 0:01:58]}  Nb6 {[%clk 0:01:26]} 22. Be2 {[%clk 0:01:39]}  c4 {[%clk 0:01:27]} 23. Rh6 {[%clk 0:01:37]}  cxb3 {[%clk 0:01:26]} 24. axb3 {[%clk 0:01:34]}  Rc8 {[%clk 0:01:25]} 25. Kd2 {[%clk 0:01:26]}  Nfxd5 {[%clk 0:01:22]} 26. Rc1 {[%clk 0:00:20]}  Rxc3 {[%clk 0:01:16]} 27. Qxc3 {[%clk 0:00:19]}  Nxc3 {[%clk 0:01:16]} 28. Rxc3 {[%clk 0:00:20]}  Kxg7 {[%clk 0:01:12]} 29. Re6 {[%clk 0:00:19]}  Qd5+ {[%clk 0:00:43]} 30. Ke1 {[%clk 0:00:18]}  Rxb3 {[%clk 0:00:25]} 31. Rc7+ {[%clk 0:00:17]}  Kf8 {[%clk 0:00:25]} 32. Kf1 {[%clk 0:00:16]}  Qxf5 {[%clk 0:00:21]} 33. Rxd6 {[%clk 0:00:14]}  Rb1+ {[%clk 0:00:20]} 34. Bd1 {[%clk 0:00:14]}  Qh3+ {[%clk 0:00:07]} 35. Ke1 {[%clk 0:00:14]}  Qh1+ {[%clk 0:00:07]} 36. Ke2 {[%clk 0:00:13]}  Qf3+ {[%clk 0:00:07]} 37. Ke1 {[%clk 0:00:13]}  Qh1+ {[%clk 0:00:05]} 38. Ke2 {[%clk 0:00:13]}  Rb2+ {[%clk 0:00:06]} 39. Bc2 {[%clk 0:00:12]}  Qh5+ {[%clk 0:00:04]} 40. Kd2 {[%clk 0:00:11]}  Qa5+ {[%clk 0:00:04]} 41. Kc1 {[%clk 0:00:11]}  Rxc2+ {[%clk 0:00:03]} 42. Kxc2 {[%clk 0:00:08]}  Qa2+ {[%clk 0:00:04]} 43. Kd1 {[%clk 0:00:08]}  Qa1+ {[%clk 0:00:03]} 44. Ke2 {[%clk 0:00:08]}  Qb2+ {[%clk 0:00:03]} 45. Kf1 {[%clk 0:00:09]}  Qb1+ {[%clk 0:00:03]} 46. Kg2 {[%clk 0:00:09]}  Ke8 {[%clk 0:00:03]} 47. Re6+ {[%clk 0:00:07]}  Kd8 {[%clk 0:00:02]} 48. Rxh7 {[%clk 0:00:08]}  Qb5 {[%clk 0:00:03]} 49. Rg6 {[%clk 0:00:08]}  Qd5 {[%clk 0:00:02]} 50. Rxb6 {[%clk 0:00:08]}  Ke8 {[%clk 0:00:02]} 51. Ra7 {[%clk 0:00:08]}  Kf8 {[%clk 0:00:00]} 52. Rb8+ {[%clk 0:00:08]} 1-0


[Site "https://www.chess.com"]

[Event "Titled Tuesday Blitz August 22 Early 2023"]
[White "Piorun, Kacper"]
[Black "Gontcharov, Vladislav"]
[WhiteFideId "1130420"]
[BlackFideId "4123492"]
[WhiteElo "2842"]
[BlackElo "2544"]
[Result "1-0"]
[Round "2"]
[TimeControl "180+1"]
[Date "2023.08.22"]
[WhiteClock "0:00:05"]
[BlackClock "0:00:00"]
[Board "59"]

1. e4 {[%clk 0:03:00]}  e6 {[%clk 0:02:58]} 2. d3 {[%clk 0:02:59]}  c5 {[%clk 0:02:57]} 3. g3 {[%clk 0:02:56]}  Nc6 {[%clk 0:02:57]} 4. Bg2 {[%clk 0:02:56]}  g6 {[%clk 0:02:56]} 5. f4 {[%clk 0:02:56]}  Nge7 {[%clk 0:02:55]} 6. Nf3 {[%clk 0:02:56]}  Bg7 {[%clk 0:02:55]} 7. O-O {[%clk 0:02:56]}  d6 {[%clk 0:02:53]} 8. c3 {[%clk 0:02:53]}  O-O {[%clk 0:02:48]} 9. Be3 {[%clk 0:02:54]}  Rb8 {[%clk 0:02:43]} 10. d4 {[%clk 0:02:49]}  cxd4 {[%clk 0:02:43]} 11. cxd4 {[%clk 0:02:49]}  d5 {[%clk 0:02:43]} 12. e5 {[%clk 0:02:49]}  b5 {[%clk 0:02:37]} 13. Nc3 {[%clk 0:02:39]}  b4 {[%clk 0:02:31]} 14. Na4 {[%clk 0:02:39]}  Qa5 {[%clk 0:02:30]} 15. b3 {[%clk 0:02:36]}  Ba6 {[%clk 0:02:28]} 16. Re1 {[%clk 0:02:36]}  Rfc8 {[%clk 0:02:16]} 17. g4 {[%clk 0:02:26]}  Bb5 {[%clk 0:01:47]} 18. Nc5 {[%clk 0:02:25]}  Qd8 {[%clk 0:01:46]} 19. Qd2 {[%clk 0:02:13]}  Rc7 {[%clk 0:01:27]} 20. Rec1 {[%clk 0:02:06]}  a5 {[%clk 0:01:21]} 21. Bf2 {[%clk 0:02:04]}  Rbc8 {[%clk 0:01:17]} 22. Rc2 {[%clk 0:01:57]}  Nb8 {[%clk 0:01:16]} 23. Rac1 {[%clk 0:01:55]}  Na6 {[%clk 0:01:13]} 24. a4 {[%clk 0:01:27]}  bxa3 {[%clk 0:00:47]} 25. Qxa5 {[%clk 0:01:25]}  Nxc5 {[%clk 0:00:42]} 26. dxc5 {[%clk 0:01:10]}  Bd3 {[%clk 0:00:35]} 27. Rd2 {[%clk 0:01:04]}  Ra8 {[%clk 0:00:35]} 28. Qc3 {[%clk 0:01:01]}  Be4 {[%clk 0:00:34]} 29. Nd4 {[%clk 0:01:00]}  Bxg2 {[%clk 0:00:33]} 30. Kxg2 {[%clk 0:01:00]}  g5 {[%clk 0:00:28]} 31. Nb5 {[%clk 0:00:55]}  gxf4 {[%clk 0:00:22]} 32. Nxc7 {[%clk 0:00:54]}  Qxc7 {[%clk 0:00:21]} 33. c6 {[%clk 0:00:45]}  Bxe5 {[%clk 0:00:20]} 34. Bd4 {[%clk 0:00:45]}  Bxd4 {[%clk 0:00:19]} 35. Qxd4 {[%clk 0:00:45]}  e5 {[%clk 0:00:20]} 36. Qc5 {[%clk 0:00:42]}  a2 {[%clk 0:00:16]} 37. Ra1 {[%clk 0:00:39]}  Ra6 {[%clk 0:00:15]} 38. Raxa2 {[%clk 0:00:33]}  Rxc6 {[%clk 0:00:15]} 39. Ra8+ {[%clk 0:00:33]}  Kg7 {[%clk 0:00:15]} 40. Qf2 {[%clk 0:00:33]}  Rc3 {[%clk 0:00:13]} 41. Ra7 {[%clk 0:00:28]}  Qd6 {[%clk 0:00:11]} 42. Rc2 {[%clk 0:00:18]}  f3+ {[%clk 0:00:07]} 43. Kg1 {[%clk 0:00:18]}  Rxc2 {[%clk 0:00:07]} 44. Qxc2 {[%clk 0:00:17]}  Qb6+ {[%clk 0:00:06]} 45. Qf2 {[%clk 0:00:17]}  Qd6 {[%clk 0:00:06]} 46. Qxf3 {[%clk 0:00:16]}  Ng6 {[%clk 0:00:06]} 47. Qxf7+ {[%clk 0:00:16]}  Kh6 {[%clk 0:00:07]} 48. Qxh7+ {[%clk 0:00:15]}  Kg5 {[%clk 0:00:07]} 49. Qh5+ {[%clk 0:00:15]}  Kf4 {[%clk 0:00:06]} 50. Qf5+ {[%clk 0:00:13]}  Ke3 {[%clk 0:00:06]} 51. Ra2 {[%clk 0:00:12]}  Nf4 {[%clk 0:00:05]} 52. Qc2 {[%clk 0:00:12]}  Qb4 {[%clk 0:00:03]} 53. Qf2+ {[%clk 0:00:11]}  Ke4 {[%clk 0:00:00]} 54. Qc2+ {[%clk 0:00:05]} 1-0


[Site "https://www.chess.com"]

[Event "Titled Tuesday Blitz August 22 Early 2023"]
[White "Chyzy, Jakub"]
[Black "Dvirnyy, Danyyil"]
[WhiteFideId "21806209"]
[BlackFideId "817570"]
[WhiteElo "2542"]
[BlackElo "2832"]
[Result "0-1"]
[Round "2"]
[TimeControl "180+1"]
[Date "2023.08.22"]
[WhiteClock "0:00:00"]
[BlackClock "0:01:29"]
[Board "61"]

1. e4 {[%clk 0:03:00]}  g6 {[%clk 0:03:00]} 2. d4 {[%clk 0:03:00]}  Bg7 {[%clk 0:03:01]} 3. Nc3 {[%clk 0:02:57]}  d6 {[%clk 0:03:02]} 4. Be3 {[%clk 0:02:56]}  a6 {[%clk 0:03:02]} 5. f3 {[%clk 0:02:56]}  b5 {[%clk 0:03:03]} 6. Qd2 {[%clk 0:02:56]}  Nd7 {[%clk 0:03:03]} 7. O-O-O {[%clk 0:02:55]}  Bb7 {[%clk 0:03:02]} 8. Kb1 {[%clk 0:02:54]}  Rc8 {[%clk 0:03:02]} 9. h4 {[%clk 0:02:49]}  h5 {[%clk 0:03:02]} 10. Nh3 {[%clk 0:02:48]}  c5 {[%clk 0:03:02]} 11. dxc5 {[%clk 0:02:47]}  Nxc5 {[%clk 0:03:03]} 12. Bd4 {[%clk 0:02:37]}  Nf6 {[%clk 0:03:03]} 13. Ng5 {[%clk 0:02:35]}  Qc7 {[%clk 0:03:01]} 14. Nd5 {[%clk 0:01:28]}  Bxd5 {[%clk 0:03:01]} 15. exd5 {[%clk 0:01:29]}  O-O {[%clk 0:03:00]} 16. g4 {[%clk 0:01:26]}  Ncd7 {[%clk 0:02:59]} 17. gxh5 {[%clk 0:01:21]}  Nxh5 {[%clk 0:03:00]} 18. Bxg7 {[%clk 0:01:19]}  Kxg7 {[%clk 0:03:01]} 19. Bh3 {[%clk 0:01:15]}  Rb8 {[%clk 0:02:57]} 20. Bxd7 {[%clk 0:01:11]}  Qxd7 {[%clk 0:02:58]} 21. Qd4+ {[%clk 0:01:10]}  Kg8 {[%clk 0:02:56]} 22. Rde1 {[%clk 0:01:05]}  Rfe8 {[%clk 0:02:48]} 23. Ne6 {[%clk 0:00:53]}  fxe6 {[%clk 0:02:39]} 24. dxe6 {[%clk 0:00:52]}  Qc6 {[%clk 0:02:35]} 25. Rhg1 {[%clk 0:00:49]}  Kh7 {[%clk 0:02:34]} 26. Rxg6 {[%clk 0:00:45]}  Rg8 {[%clk 0:02:26]} 27. Rg5 {[%clk 0:00:33]}  Rxg5 {[%clk 0:02:23]} 28. hxg5 {[%clk 0:00:33]}  Qxf3 {[%clk 0:02:19]} 29. Qa7 {[%clk 0:00:29]}  Re8 {[%clk 0:02:17]} 30. Qd7 {[%clk 0:00:27]}  Ng7 {[%clk 0:02:13]} 31. Qa7 {[%clk 0:00:21]}  Nxe6 {[%clk 0:02:06]} 32. g6+ {[%clk 0:00:18]}  Kg7 {[%clk 0:02:06]} 33. a4 {[%clk 0:00:14]}  Qf6 {[%clk 0:01:53]} 34. Qd7 {[%clk 0:00:13]}  Rd8 {[%clk 0:01:50]} 35. Qxe6 {[%clk 0:00:12]}  Qxe6 {[%clk 0:01:50]} 36. Rxe6 {[%clk 0:00:13]}  Rd7 {[%clk 0:01:50]} 37. a5 {[%clk 0:00:13]}  Kh6 {[%clk 0:01:45]} 38. c3 {[%clk 0:00:12]}  Kg7 {[%clk 0:01:44]} 39. Kc2 {[%clk 0:00:12]}  Rc7 {[%clk 0:01:43]} 40. Kd3 {[%clk 0:00:13]}  Kf8 {[%clk 0:01:44]} 41. Kd4 {[%clk 0:00:12]}  Rc4+ {[%clk 0:01:43]} 42. Kd5 {[%clk 0:00:12]}  Rc5+ {[%clk 0:01:43]} 43. Kd4 {[%clk 0:00:12]}  Rc4+ {[%clk 0:01:44]} 44. Kd3 {[%clk 0:00:12]}  Rg4 {[%clk 0:01:41]} 45. b3 {[%clk 0:00:12]}  Ke8 {[%clk 0:01:40]} 46. c4 {[%clk 0:00:11]}  bxc4+ {[%clk 0:01:40]} 47. bxc4 {[%clk 0:00:12]}  Kd7 {[%clk 0:01:41]} 48. Re2 {[%clk 0:00:07]}  Rxg6 {[%clk 0:01:38]} 49. Rb2 {[%clk 0:00:08]}  Rg5 {[%clk 0:01:36]} 50. Rb7+ {[%clk 0:00:06]}  Ke6 {[%clk 0:01:37]} 51. Ra7 {[%clk 0:00:03]}  Rxa5 {[%clk 0:01:37]} 52. Kd4 {[%clk 0:00:03]}  Ra3 {[%clk 0:01:37]} 53. c5 {[%clk 0:00:03]}  Ra4+ {[%clk 0:01:37]} 54. Kc3 {[%clk 0:00:04]}  dxc5 {[%clk 0:01:38]} 55. Kb3 {[%clk 0:00:03]}  Ra5 {[%clk 0:01:37]} 56. Kc4 {[%clk 0:00:03]}  Kd6 {[%clk 0:01:37]} 57. Ra8 {[%clk 0:00:04]}  Ra4+ {[%clk 0:01:37]} 58. Kb3 {[%clk 0:00:03]}  Rb4+ {[%clk 0:01:38]} 59. Kc3 {[%clk 0:00:04]}  Rb6 {[%clk 0:01:38]} 60. Rd8+ {[%clk 0:00:05]}  Kc6 {[%clk 0:01:38]} 61. Re8 {[%clk 0:00:05]}  Rb7 {[%clk 0:01:37]} 62. Ra8 {[%clk 0:00:06]}  Kb5 {[%clk 0:01:38]} 63. Re8 {[%clk 0:00:06]}  a5 {[%clk 0:01:35]} 64. Ra8 {[%clk 0:00:05]}  a4 {[%clk 0:01:36]} 65. Rc8 {[%clk 0:00:04]}  e5 {[%clk 0:01:33]} 66. Re8 {[%clk 0:00:04]}  a3 {[%clk 0:01:30]} 67. Kb3 {[%clk 0:00:03]}  a2 {[%clk 0:01:30]} 68. Kxa2 {[%clk 0:00:03]}  Kc4 {[%clk 0:01:30]} 69. Rxe5 {[%clk 0:00:02]}  Kd4 {[%clk 0:01:30]} 70. Re8 {[%clk 0:00:02]}  Kc3 {[%clk 0:01:30]} 71. Re3+ {[%clk 0:00:02]}  Kd2 {[%clk 0:01:30]} 72. Re5 {[%clk 0:00:02]}  c4 {[%clk 0:01:29]} 73. Rd5+ {[%clk 0:00:02]}  Kc2 {[%clk 0:01:30]} 74. Ka3 {[%clk 0:00:03]}  c3 {[%clk 0:01:29]} 75. Rd6 {[%clk 0:00:03]}  Ra7+ {[%clk 0:01:28]} 76. Kb4 {[%clk 0:00:03]}  Kb2 {[%clk 0:01:29]} 77. Rc6 {[%clk 0:00:00]}  c2 {[%clk 0:01:29]} 0-1


[Site "https://www.chess.com"]

[Event "Titled Tuesday Blitz August 22 Early 2023"]
[White "Nazaretyan, Tigran"]
[Black "Yanchenko, Roman"]
[WhiteFideId "24162345"]
[BlackFideId "4137329"]
[WhiteElo "2540"]
[BlackElo "2820"]
[Result "1/2-1/2"]
[Round "2"]
[TimeControl "180+1"]
[Date "2023.08.22"]
[WhiteClock "0:00:17"]
[BlackClock "0:00:05"]
[Board "63"]

1. d4 {[%clk 0:02:59]}  d5 {[%clk 0:03:00]} 2. c4 {[%clk 0:02:58]}  c6 {[%clk 0:03:00]} 3. Nf3 {[%clk 0:02:58]}  Nf6 {[%clk 0:03:00]} 4. Nc3 {[%clk 0:02:58]}  a6 {[%clk 0:03:00]} 5. e3 {[%clk 0:02:54]}  Bf5 {[%clk 0:03:00]} 6. Be2 {[%clk 0:02:50]}  e6 {[%clk 0:03:00]} 7. O-O {[%clk 0:02:47]}  Bd6 {[%clk 0:03:00]} 8. h3 {[%clk 0:02:46]}  Nbd7 {[%clk 0:03:00]} 9. Nh4 {[%clk 0:02:45]}  Be4 {[%clk 0:03:00]} 10. f3 {[%clk 0:02:37]}  Bg6 {[%clk 0:03:00]} 11. Nxg6 {[%clk 0:02:36]}  hxg6 {[%clk 0:03:01]} 12. f4 {[%clk 0:02:36]}  g5 {[%clk 0:02:50]} 13. c5 {[%clk 0:02:20]}  Bc7 {[%clk 0:02:49]} 14. Bd3 {[%clk 0:02:20]}  Nh5 {[%clk 0:02:39]} 15. b4 {[%clk 0:02:13]}  f5 {[%clk 0:02:35]} 16. a4 {[%clk 0:02:01]}  Ndf6 {[%clk 0:02:19]} 17. fxg5 {[%clk 0:01:41]}  Ne4 {[%clk 0:02:19]} 18. Nxe4 {[%clk 0:01:38]}  fxe4 {[%clk 0:02:18]} 19. Be2 {[%clk 0:01:36]}  Qxg5 {[%clk 0:02:18]} 20. Bxh5+ {[%clk 0:01:34]}  Rxh5 {[%clk 0:02:18]} 21. Qg4 {[%clk 0:01:34]}  Bh2+ {[%clk 0:02:15]} 22. Kf2 {[%clk 0:01:27]}  Ke7 {[%clk 0:01:50]} 23. Qxg5+ {[%clk 0:01:20]}  Rxg5 {[%clk 0:01:49]} 24. g4 {[%clk 0:01:20]}  Bc7 {[%clk 0:01:41]} 25. Kg2 {[%clk 0:01:16]}  Rg6 {[%clk 0:01:37]} 26. Bd2 {[%clk 0:01:15]}  Rf6 {[%clk 0:01:31]} 27. Rxf6 {[%clk 0:01:06]}  gxf6 {[%clk 0:01:31]} 28. h4 {[%clk 0:01:02]}  Kf7 {[%clk 0:01:15]} 29. Be1 {[%clk 0:01:01]}  f5 {[%clk 0:00:38]} 30. g5 {[%clk 0:00:51]}  e5 {[%clk 0:00:38]} 31. dxe5 {[%clk 0:00:44]}  Bxe5 {[%clk 0:00:39]} 32. Rd1 {[%clk 0:00:43]}  Kg6 {[%clk 0:00:25]} 33. Bg3 {[%clk 0:00:42]}  Bc3 {[%clk 0:00:26]} 34. Rb1 {[%clk 0:00:38]}  Bd2 {[%clk 0:00:20]} 35. Kf2 {[%clk 0:00:36]}  d4 {[%clk 0:00:14]} 36. exd4 {[%clk 0:00:29]}  f4 {[%clk 0:00:14]} 37. Ke2 {[%clk 0:00:27]}  Be3 {[%clk 0:00:10]} 38. Rd1 {[%clk 0:00:23]}  Rh8 {[%clk 0:00:09]} 39. d5 {[%clk 0:00:22]}  cxd5 {[%clk 0:00:03]} 40. Rxd5 {[%clk 0:00:21]}  fxg3 {[%clk 0:00:03]} 41. Kxe3 {[%clk 0:00:21]}  Rxh4 {[%clk 0:00:04]} 42. b5 {[%clk 0:00:18]}  Rh1 {[%clk 0:00:02]} 43. Rd2 {[%clk 0:00:17]}  Kxg5 {[%clk 0:00:02]} 44. Kxe4 {[%clk 0:00:18]}  axb5 {[%clk 0:00:02]} 45. axb5 {[%clk 0:00:18]}  Kg4 {[%clk 0:00:03]} 46. Kd5 {[%clk 0:00:18]}  Rc1 {[%clk 0:00:02]} 47. c6 {[%clk 0:00:17]}  bxc6+ {[%clk 0:00:03]} 48. bxc6 {[%clk 0:00:17]}  Kf3 {[%clk 0:00:03]} 49. Rd3+ {[%clk 0:00:17]}  Kf4 {[%clk 0:00:04]} 50. Rxg3 {[%clk 0:00:16]}  Kxg3 {[%clk 0:00:04]} 51. Kd6 {[%clk 0:00:17]}  Rxc6+ {[%clk 0:00:05]} 52. Kxc6 {[%clk 0:00:17]} 1/2-1/2


[Site "https://www.chess.com"]